bitfinex-derivatives/quotes_SOLF0:USTF0_20250520
["timestamp","ask_amount","ask_price","bid_price","bid_amount"]
[1747738783179,6.0079,166.4,166.38,6.0083]
[1747738783880,6.04899424,166.41,166.38,6.0083]
[1747738784181,6.04899424,166.41,166.39,6.0081]
[1747738784477,6.04899424,166.41,166.37,0.04344699]
[1747738784675,6.04899424,166.41,166.38,6.0082]
[1747738787984,0.04139424,166.41,166.39,6.0082]
[1747738788384,0.04139424,166.41,166.37,0.04344699]
[1747738788584,6.04909424,166.41,166.38,6.0083]
[1747738791083,6.04909424,166.41,166.39,6.0081]
[1747738791585,6.0078,166.4,166.37,0.04344699]
[1747738791783,6.50310715,166.4,166.37,0.04344699]
[1747738792183,6.0085,166.38,166.37,0.04344699]
[1747738794788,61.28,166.39,166.37,0.04344699]
[1747738795183,61.28,166.39,166.38,6.0085]
[1747738795581,0.04139424,166.41,166.37,0.04344699]
[1747738797290,0.04139424,166.41,166.39,6.008]
[1747738798992,6.04889424,166.41,166.38,6.0084]
[1747738799291,0.04139424,166.41,166.38,6.0085]
[1747738799491,0.04139424,166.41,166.37,0.04344699]
[1747738800583,0.04139424,166.41,166.37,61.32344699]
[1747738800789,61.28,166.45,166.37,61.32344699]
[1747738801290,7.42008626,166.47,166.37,61.32344699]
[1747738801496,7.42008626,166.47,166.37,61.28]
[1747738801690,7.42008626,166.47,166.4,6.0076]
[1747738801893,6.530752,166.45,166.42,0.04012872]
[1747738802092,61.28,166.44,166.42,0.04012872]
[1747738802490,6.0067,166.43,166.42,0.04012872]
[1747738802793,61.28,166.44,166.34,63.3335]
[1747738802995,6.50310715,166.42,166.34,2.0535]
[1747738803187,6.50310715,166.39,166.33,1.13453393]
[1747738803390,61.28,166.38,166.32,1.13453393]
[1747738803587,6.0096,166.35,166.33,0.03830356]
[1747738803893,6.50310715,166.36,166.33,0.03830356]
[1747738804195,6.0099,166.35,166.33,0.03830356]
[1747738805191,12.51250715,166.36,166.33,0.03830356]
[1747738805685,7.42008626,166.46,166.35,6.4940078]
[1747738805889,10.97200963,166.48,166.4,6.4940078]
[1747738806090,10.97200963,166.48,166.47,6.0053]
[1747738806288,7.38447644,166.5,166.45,61.28]
[1747738806692,7.38447644,166.5,166.49,6.0046]
[1747738808801,0.02387015,166.51,166.5,6.0042]
[1747738809592,61.28,166.58,166.57,6.0017]
[1747738810102,519.36,166.6,166.5,6.4940078]
[1747738810294,61.28,166.61,166.53,6.4940078]
[1747738810492,61.26,166.64,166.56,6.4940078]
[1747738810693,61.26,166.64,166.58,0.0441305]
[1747738812607,61.26,166.64,166.6,6.0005]
[1747738813503,67.2592,166.64,166.58,6.0451305]
[1747738813702,67.2592,166.64,166.58,0.0441305]
[1747738814600,5.9996,166.63,166.58,6.0453305]
[1747738815208,5.9996,166.63,166.58,0.0441305]
[1747738815409,61.26,166.64,166.58,0.0441305]
[1747738816105,6.001,166.59,166.58,0.0441305]
[1747738820711,6.0027,166.55,166.49,6.4940078]
[1747738821011,61.22,166.59,166.48,61.22]
[1747738821201,63.1974,166.58,166.47,12.1012]
[1747738821402,69.6914078,166.58,166.47,12.1012]
[1747738821814,0.03959747,166.54,166.51,0.03889833]
[1747738822312,6.0038,166.52,166.51,0.03889833]
[1747738824511,6.0062,166.45,166.41,6.1851]
[1747738824712,61.22,166.49,166.41,6.1851]
[1747738824916,61.2,166.5,166.41,6.1851]
[1747738825113,6.0055,166.47,166.43,6.0067]
[1747738825407,61.2,166.5,166.43,6.0067]
[1747738825608,6.0057,166.46,166.45,0.04229804]
[1747738826526,0.0391749,166.48,166.45,0.04229804]
[1747738827014,6.0444749,166.48,166.45,0.04229804]
[1747738827517,0.0391749,166.48,166.45,0.04229804]
[1747738827718,6.0054,166.47,166.45,0.04229804]
[1747738828721,0.0391749,166.48,166.45,0.04229804]
[1747738829515,0.0391749,166.48,166.46,6.0056]
[1747738829719,0.0391749,166.48,166.45,0.04229804]
[1747738830223,0.0391749,166.48,166.47,6.0053]
[1747738831518,0.0391749,166.48,166.46,6.0055]
[1747738832621,0.0391749,166.48,166.47,6.0053]
[1747738833216,0.0391749,166.48,166.45,0.04229804]
[1747738833720,0.0391749,166.48,166.45,6.04799804]
[1747738834522,0.0391749,166.48,166.46,6.0056]
[1747738835115,0.0391749,166.48,166.45,0.04229804]
[1747738835718,6.49960629,166.47,166.38,61.22]
[1747738835921,6.50141265,166.46,166.35,67.3299]
[1747738836113,61.22,166.45,166.35,67.3299]
[1747738836315,6.0071,166.42,166.39,6.0079]
[1747738836616,6.0071,166.42,166.35,67.3299]
[1747738836812,0.04570305,166.4,166.37,0.04412336]
[1747738837413,6.05370305,166.4,166.37,0.04412336]
[1747738838323,6.05370305,166.4,166.37,6.05302336]
[1747738838926,6.05370305,166.4,166.37,0.04412336]
[1747738840938,0.04570305,166.4,166.37,0.04412336]
[1747738841125,61.28570305,166.4,166.37,0.04412336]
[1747738841327,6.50141265,166.39,166.37,0.04412336]
[1747738841838,6.0085,166.38,166.37,0.04412336]
[1747738842140,6.50141265,166.39,166.27,61.24]
[1747738842336,6.0102,166.34,166.29,6.0118]
[1747738842536,6.0102,166.34,166.27,61.24]
[1747738842739,61.24,166.36,166.27,61.24]
[1747738843138,0.04179328,166.33,166.32,6.0104]
[1747738848943,9.328e-05,166.33,166.32,6.0104]
[1747738849141,9.328e-05,166.33,166.32,9.973]
[1747738849445,9.328e-05,166.33,166.32,12.0065]
[1747738849742,9.328e-05,166.33,166.32,73.2665]
[1747738852145,9.328e-05,166.33,166.32,71.233]
[1747738854248,9.328e-05,166.33,166.32,69.3149]
[1747738854448,9.328e-05,166.33,166.32,67.2704]
[1747738854652,9.328e-05,166.33,166.32,61.26]
[1747738855050,9.328e-05,166.33,166.32,67.2707]
[1747738856349,9.328e-05,166.33,166.31,6.0109]
[1747738856554,9.328e-05,166.33,166.3,0.0400142]
[1747738857459,6.0109,166.32,166.3,0.0400142]
[1747738860763,6.01059328,166.33,166.3,0.0400142]
[1747738861362,6.01059328,166.33,166.3,6.0513142]
[1747738862870,6.0108,166.32,166.3,0.0400142]
[1747738863173,9.328e-05,166.33,166.3,0.0400142]
[1747738863564,6.01069328,166.33,166.3,6.0514142]
[1747738863967,9.328e-05,166.33,166.3,0.0400142]
[1747738864157,6.0108,166.32,166.3,0.0400142]
[1747738864766,6.0108,166.32,166.3,6.0513142]
[1747738864970,6.0108,166.32,166.3,0.0400142]
[1747738865560,6.0108,166.32,166.3,6.0514142]
[1747738866165,6.01059328,166.33,166.3,6.0514142]
[1747738867869,6.0107,166.32,166.3,6.0514142]
[1747738870070,6.01059328,166.33,166.3,6.0514142]
[1747738873267,9.328e-05,166.33,166.32,6.0107]
[1747738873863,67.2665,166.44,166.4,6.0078]
[1747738874570,67.2665,166.44,166.41,6.0072]
[1747738874870,67.30541565,166.44,166.41,6.04640872]
[1747738875573,6.0067,166.43,166.41,0.03920872]
[1747738876172,6.0067,166.43,166.41,6.04660872]
[1747738877072,67.30541565,166.44,166.41,6.04660872]
[1747738877975,61.29891565,166.44,166.41,0.03920872]
[1747738879275,67.30541565,166.44,166.41,6.04640872]
[1747738879478,61.29891565,166.44,166.41,0.03920872]
[1747738879879,67.30541565,166.44,166.41,6.04660872]
[1747738881180,6.0071,166.42,166.41,0.03920872]
[1747738882391,61.29891565,166.44,166.41,0.03920872]
[1747738882790,61.29891565,166.44,166.41,6.04650872]
[1747738883091,67.30551565,166.44,166.41,6.04650872]
[1747738883293,67.30551565,166.44,166.42,6.007]
[1747738883586,61.29891565,166.44,166.42,6.007]
[1747738883794,61.29891565,166.44,166.41,0.03920872]
[1747738884493,6.50341804,166.43,166.41,0.03920872]
[1747738884694,6.0071,166.42,166.41,0.03920872]
[1747738884990,6.50341804,166.43,166.31,1.9931]
[1747738885188,6.50341804,166.4,166.32,62.37453393]
[1747738885394,6.50341804,166.37,166.31,1.13453393]
[1747738885898,6.0102,166.34,166.32,0.04072172]
[1747738886691,6.0102,166.34,166.32,6.05122172]
[1747738886895,6.0103,166.33,166.32,0.04072172]
[1747738887899,6.0102,166.34,166.32,6.05142172]
[1747738888897,6.0102,166.34,166.32,0.04072172]
[1747738890593,0.04028331,166.36,166.32,0.04072172]
[1747738890594,6.0103,166.33,166.32,0.04072172]
[1747738894101,6.0101,166.34,166.32,0.04072172]
[1747738894292,0.04028331,166.36,166.32,0.04072172]
[1747738894895,0.04028331,166.36,166.35,6.0096]
[1747738898407,0.04028331,166.36,166.35,7.5120518]
[1747738899899,0.04028331,166.36,166.35,6.0096]
[1747738912820,0.04028331,166.36,166.35,7.51212907]
[1747738923226,0.04028331,166.36,166.34,6.0098]
[1747738925239,0.04028331,166.36,166.32,0.04072172]
[1747738926636,6.0103,166.33,166.32,0.04072172]
[1747738926936,67.68341804,166.34,166.25,1.13453393]
[1747738927137,6.0118,166.29,166.25,1.13453393]
[1747738927333,67.68341804,166.34,166.25,1.13453393]
[1747738927538,6.50341804,166.31,166.25,1.13453393]
[1747738927842,0.03955918,166.3,166.26,0.04460733]
[1747738928440,0.03955918,166.3,166.29,6.0118]
[1747738929041,5.918e-05,166.3,166.29,6.0118]
[1747738930342,5.918e-05,166.3,166.29,7.51501976]
[1747738932846,5.918e-05,166.3,166.29,1.50321976]
[1747738933644,6.0119,166.29,166.26,6.05730733]
[1747738934647,6.01155918,166.3,166.27,6.0125]
[1747738934846,5.918e-05,166.3,166.26,0.04460733]
[1747738936449,5.918e-05,166.3,166.28,6.0119]
[1747738938144,5.918e-05,166.3,166.29,6.0118]
[1747738941044,5.918e-05,166.3,166.28,6.0121]
[1747738941450,5.918e-05,166.3,166.27,6.0124]
[1747738941755,5.918e-05,166.3,166.26,0.04460733]
[1747738941949,6.0125,166.27,166.26,0.04460733]
[1747738943453,6.0123,166.28,166.26,0.04460733]
[1747738944057,6.0125,166.27,166.26,0.04460733]
[1747738944257,8.56807722,166.3,166.26,0.04460733]
[1747738944754,6.0125,166.28,166.26,0.04460733]
[1747738945050,8.56807722,166.3,166.26,0.04460733]
[1747738946164,6.0125,166.27,166.26,0.04460733]
[1747738946457,8.56807722,166.3,166.26,0.04460733]
[1747738946759,6.0123,166.28,166.26,6.05740733]
[1747738946952,8.56807722,166.3,166.26,0.04460733]
[1747738947653,6.0125,166.27,166.26,0.04460733]
[1747738947858,6.0125,166.27,166.16,7.63795197]
[1747738947859,67.70341804,166.27,166.19,61.2]
[1747738948761,0.04285054,166.25,166.21,0.04550261]
[1747738948947,6.0137,166.24,166.21,0.04550261]
[1747738949148,0.04285054,166.25,166.21,0.04550261]
[1747738949856,6.0138,166.24,166.21,6.05990261]
[1747738950253,0.04285054,166.25,166.21,6.05990261]
[1747738950763,6.0142,166.23,166.21,6.05990261]
[1747738950961,0.04285054,166.25,166.21,0.04550261]
[1747738952164,6.05615054,166.25,166.21,0.04550261]
[1747738952664,0.04285054,166.25,166.24,6.0136]
[1747738956762,0.04285054,166.25,166.22,6.0141]
[1747738957069,0.04285054,166.25,166.21,0.04550261]
[1747738957859,0.04285054,166.25,166.22,6.0142]
[1747738958063,0.04285054,166.25,166.21,0.04550261]
[1747738958264,6.05635054,166.25,166.21,0.04550261]
[1747738958457,0.04285054,166.25,166.22,6.0141]
[1747738958766,0.04285054,166.25,166.21,0.04550261]
[1747738959367,6.0143,166.22,166.21,0.04550261]
[1747738960864,67.1943,166.22,166.21,0.04550261]
[1747738962560,61.18,166.22,166.14,61.18]
[1747738962765,61.18,166.22,166.12,2.0899]
[1747738962966,6.50341804,166.2,166.12,2.0899]
[1747738963175,6.50341804,166.2,166.11,65.2402]
[1747738963774,6.05455407,166.17,166.14,6.06147967]
[1747738964477,6.05455407,166.17,166.14,0.04427967]
[1747738965172,6.05455407,166.17,166.14,6.06127967]
[1747738965474,6.05455407,166.17,166.14,0.04427967]
[1747738965671,0.03805407,166.17,166.16,6.0165]
[1747738970076,0.03805407,166.17,166.16,67.2165]
[1747738972674,5.407e-05,166.17,166.16,67.2165]
[1747738977376,5.407e-05,166.17,166.16,68.72058626]
[1747738985386,5.407e-05,166.17,166.16,67.2165]
[1747738985789,5.407e-05,166.17,166.15,6.0167]
[1747738985983,5.407e-05,166.17,166.14,0.04427967]
[1747738986183,6.0165,166.16,166.14,0.04427967]
[1747738986588,5.407e-05,166.17,166.14,0.04427967]
[1747738987193,5.407e-05,166.17,166.14,6.06147967]
[1747738987889,5.407e-05,166.17,166.14,0.04427967]
[1747738988588,5.407e-05,166.17,166.16,6.0165]
[1747738990685,5.407e-05,166.17,166.16,7.52056562]
[1747738998691,5.407e-05,166.17,166.16,1.50406562]
[1747738999604,5.407e-05,166.17,166.14,6.06137967]
[1747738999790,5.407e-05,166.17,166.14,0.04427967]
[1747739000095,61.16005407,166.17,166.14,0.04427967]
[1747739000483,61.16005407,166.17,166.14,6.06127967]
[1747739001709,67.17635407,166.17,166.14,6.06127967]
[1747739002214,61.16005407,166.17,166.15,6.0168]
[1747739002899,61.16005407,166.17,166.14,0.04427967]
[1747739003701,67.66347211,166.17,166.14,0.04427967]
[1747739004696,6.0169,166.16,166.14,0.04427967]
[1747739004898,67.66347211,166.17,166.14,0.04427967]
[1747739005091,67.66347211,166.17,166.09,6.019]
[1747739005400,67.66347211,166.17,166.06,1.13453393]
[1747739005701,6.0182,166.12,166.08,6.0192]
[1747739005998,6.06092695,166.12,166.08,6.06280578]
[1747739006196,6.0184,166.11,166.08,6.06280578]
[1747739006500,0.04272695,166.12,166.09,6.019]
[1747739006689,0.04272695,166.12,166.08,0.04360578]
[1747739007204,0.04272695,166.12,166.11,6.0183]
[1747739007388,6.0184,166.11,166.08,0.04360578]
[1747739007694,0.04272695,166.12,166.08,0.04360578]
[1747739007899,6.019,166.09,166.08,0.04360578]
[1747739009392,61.58,166.09,166.06,1.13453393]
[1747739009901,6.0198,166.07,166.06,1.13453393]
[1747739010805,6.0201,166.06,166.05,0.04610137]
[1747739013396,8.0064,166.06,166.05,0.04610137]
[1747739014696,0.03836375,166.08,166.05,0.04610137]
[1747739015100,0.03836375,166.08,166.06,6.02]
[1747739015298,0.03836375,166.08,166.05,0.04610137]
[1747739015993,6.50341804,166.07,166.05,0.04610137]
[1747739016199,67.6201,166.06,166.05,0.04610137]
[1747739024505,61.6,166.06,165.96,581.6]
[1747739025108,6.0215,166.03,166.0,6.0222]
[1747739025508,6.06174118,166.03,166.0,6.06138174]
[1747739025810,0.04024118,166.03,166.0,0.03918174]
[1747739026505,6.0219,166.02,166.0,0.03918174]
[1747739026704,0.04024118,166.03,166.0,0.03918174]
[1747739027209,6.06154118,166.03,166.0,6.06128174]
[1747739027810,0.04024118,166.03,166.0,6.06128174]
[1747739028011,0.04024118,166.03,166.0,0.03918174]
[1747739028405,0.04024118,166.03,166.02,6.0216]
[1747739036517,0.04024118,166.03,166.01,6.0218]
[1747739037220,0.04024118,166.03,166.0,67.66138174]
[1747739039917,6.50341804,166.01,165.95,6.024]
[1747739040313,6.50341804,166.01,165.92,1.51488464]
[1747739040510,6.0234,165.97,165.93,6.0246]
[1747739040715,6.50341804,166.01,165.92,1.51488464]
[1747739041014,0.04070898,165.98,165.95,0.04531864]
[1747739041817,0.04070898,165.98,165.96,6.0235]
[1747739042019,0.04070898,165.98,165.95,0.04531864]
[1747739042519,0.04070898,165.98,165.97,6.0234]
[1747739042723,63.1632,166.05,165.95,61.28531864]
[1747739043024,61.24,166.05,165.96,4.1177]
[1747739043220,6.021,166.04,166.01,6.0217]
[1747739043822,6.06199504,166.04,166.01,6.05967558]
[1747739044421,0.04099504,166.04,166.02,6.0216]
[1747739044923,0.04099504,166.04,166.01,6.05977558]
[1747739045121,0.04099504,166.04,166.01,0.03797558]
[1747739045419,6.0216,166.02,166.01,0.03797558]
[1747739048818,6.0213,166.03,166.01,0.03797558]
[1747739049014,0.04099504,166.04,166.01,0.03797558]
[1747739049223,6.06199504,166.04,166.01,0.03797558]
[1747739050222,6.06199504,166.04,166.01,6.05967558]
[1747739050424,6.06199504,166.04,166.01,0.03797558]
[1747739051429,0.04099504,166.04,166.01,0.03797558]
[1747739052025,0.04099504,166.04,166.03,6.0212]
[1747739053232,6.0193,166.09,166.06,6.02]
[1747739053428,154.25442893,166.11,166.06,6.02]
[1747739053628,6.019,166.1,166.06,6.02]
[1747739054131,6.06464111,166.1,166.06,6.06524166]
[1747739054634,6.0191,166.09,166.06,6.06524166]
[1747739055131,6.0191,166.09,166.06,0.04524166]
[1747739055432,0.04564111,166.1,166.06,0.04524166]
[1747739056333,6.0191,166.09,166.06,0.04524166]
[1747739059035,6.0198,166.07,166.06,0.04524166]
[1747739064036,61.22,166.07,166.0,6.0222]
[1747739065045,0.03921496,166.05,166.02,0.04313481]
[1747739065451,6.0215,166.03,166.02,0.04313481]
[1747739067752,6.0209,166.04,166.02,0.04313481]
[1747739067954,0.03921496,166.05,166.02,0.04313481]
[1747739069754,0.03921496,166.05,166.03,6.0209]
[1747739071855,0.03921496,166.05,166.04,6.0208]
[1747739075057,0.03921496,166.05,166.04,7.526202]
[1747739076754,0.03921496,166.05,166.04,6.0208]
[1747739089268,0.03921496,166.05,166.04,7.52619696]
[1747739090173,0.03921496,166.05,166.04,68.70619696]
[1747739102786,0.03921496,166.05,166.04,1.50539696]
[1747739102990,67.73234808,166.05,166.02,1.19997485]
[1747739103290,6.0212,166.03,166.02,1.19997485]
[1747739103497,67.73234808,166.05,165.95,61.16]
[1747739103692,67.69313312,166.05,165.95,61.16]
[1747739103893,6.53313312,166.02,165.97,6.0232]
[1747739104093,6.53313312,166.02,165.95,61.16]
[1747739104495,6.53313312,166.02,165.99,6.0224]
[1747739104496,0.04292241,166.0,165.99,6.0224]
[1747739106486,0.04292241,166.0,165.97,0.03887241]
[1747739106896,6.06542241,166.0,165.97,0.03887241]
[1747739107096,0.04292241,166.0,165.98,6.023]
[1747739108992,6.06532241,166.0,165.97,6.06217241]
[1747739109193,6.06532241,166.0,165.97,0.03887241]
[1747739109897,0.04292241,166.0,165.98,6.023]
[1747739110097,0.04292241,166.0,165.97,0.03887241]
[1747739111191,0.04292241,166.0,165.98,6.023]
[1747739112098,0.04292241,166.0,165.99,6.0227]
[1747739113301,0.04292241,166.0,165.99,67.2027]
[1747739115999,0.04292241,166.0,165.99,68.7084027]
[1747739116899,2.241e-05,166.0,165.99,68.7084027]
[1747739117399,2.241e-05,166.0,165.99,70.7330027]
[1747739118595,61.18,166.11,166.08,6.0191]
[1747739119604,61.22107384,166.11,166.09,6.0188]
[1747739120103,6.05947384,166.11,166.08,6.05726033]
[1747739120301,0.04107384,166.11,166.08,0.03796033]
[1747739120607,6.53313312,166.09,166.08,0.03796033]
[1747739120797,6.53313312,166.09,166.01,61.18]
[1747739121294,6.0203,166.06,166.03,6.0212]
[1747739121900,6.06119965,166.06,166.03,6.06747804]
[1747739122301,6.0207,166.05,166.03,0.04627804]
[1747739123807,6.0208,166.04,166.03,0.04627804]
[1747739124507,6.0206,166.05,166.03,0.04627804]
[1747739126610,6.0208,166.04,166.03,0.04627804]
[1747739132612,61.22089965,166.06,166.03,0.04627804]
[1747739133308,0.04089965,166.06,166.03,0.04627804]
[1747739134526,6.06109965,166.06,166.03,0.04627804]
[1747739134726,0.04089965,166.06,166.03,0.04627804]
[1747739135128,0.04089965,166.06,166.05,6.0205]
[1747739135927,0.04089965,166.06,166.04,6.0207]
[1747739136222,0.04089965,166.06,166.03,0.04627804]
[1747739136819,6.0206,166.05,166.03,0.04627804]
[1747739137727,6.0206,166.05,166.03,6.06747804]
[1747739138124,6.06109965,166.06,166.03,6.06747804]
[1747739138326,0.04089965,166.06,166.04,6.0207]
[1747739138628,0.04089965,166.06,166.03,0.04627804]
[1747739139227,6.0205,166.05,166.03,0.04627804]
[1747739139424,0.04089965,166.06,166.03,0.04627804]
[1747739139822,6.0208,166.04,166.03,0.04627804]
[1747739141931,6.0207,166.05,166.03,0.04627804]
[1747739142330,0.04089965,166.06,166.03,0.04627804]
[1747739143229,6.0208,166.04,166.03,0.04627804]
[1747739145329,0.04089965,166.06,166.03,0.04627804]
[1747739146223,0.04089965,166.06,166.04,6.0206]
[1747739146424,0.04089965,166.06,166.03,0.04627804]
[1747739148628,6.0208,166.04,166.03,0.04627804]
[1747739151527,6.0207,166.05,166.03,0.04627804]
[1747739151732,0.04089965,166.06,166.03,0.04627804]
[1747739153033,6.0207,166.05,166.03,0.04627804]
[1747739156239,6.0208,166.04,166.03,0.04627804]
[1747739156537,0.04089965,166.06,166.03,0.04627804]
[1747739157138,6.0207,166.05,166.03,0.04627804]
[1747739157441,0.04089965,166.06,166.03,0.04627804]
[1747739158432,6.57272648,166.06,166.03,0.04627804]
[1747739158739,6.0208,166.04,166.03,0.04627804]
[1747739163237,6.0206,166.05,166.03,0.04627804]
[1747739163637,0.04089965,166.06,166.03,0.04627804]
[1747739164041,6.06119965,166.06,166.03,0.04627804]
[1747739164644,6.06119965,166.06,166.03,6.06727804]
[1747739165533,6.0206,166.05,166.03,6.06727804]
[1747739165745,0.04089965,166.06,166.03,0.04627804]
[1747739167647,6.0208,166.04,166.03,0.04627804]
[1747739168046,0.04089965,166.06,166.03,0.04627804]
[1747739168246,6.0206,166.05,166.03,6.06737804]
[1747739168747,6.0206,166.05,166.03,0.04627804]
[1747739169347,6.0208,166.04,166.03,0.04627804]
[1747739169944,6.0206,166.05,166.03,0.04627804]
[1747739170847,6.0208,166.04,166.03,0.04627804]
[1747739171651,6.0206,166.05,166.03,6.06747804]
[1747739172150,6.0206,166.05,166.03,0.04627804]
[1747739172354,0.04089965,166.06,166.03,0.04627804]
[1747739172647,0.04089965,166.06,166.03,6.06877804]
[1747739172846,10.97200963,166.11,166.03,6.06877804]
[1747739173452,10.97200963,166.11,166.09,6.0188]
[1747739175453,61.14584141,166.12,166.09,6.0188]
[1747739176352,61.14584141,166.12,166.08,0.03989169]
[1747739177152,6.0186,166.11,166.08,6.05919169]
[1747739177650,61.14584141,166.12,166.09,6.0187]
[1747739178154,61.14584141,166.12,166.08,0.03989169]
[1747739180552,61.14584141,166.12,166.09,6.0188]
[1747739181150,61.14584141,166.12,166.08,0.03989169]
[1747739181856,61.14584141,166.12,166.1,6.0184]
[1747739182057,0.04584141,166.12,166.1,6.0184]
[1747739183052,0.04584141,166.12,166.11,6.0183]
[1747739194572,150.71513332,166.2,166.11,6.02]
[1747739194772,150.71513332,166.2,166.18,6.0157]
[1747739195072,61.04,166.2,166.11,1.50483012]
[1747739195272,6.0155,166.19,166.15,6.0165]
[1747739195773,6.05833169,166.19,166.15,6.05524929]
[1747739196573,6.0159,166.18,166.15,6.05524929]
[1747739197375,0.04283169,166.19,166.15,0.03874929]
[1747739197376,6.0165,166.16,166.15,0.03874929]
[1747739198873,8.61392683,166.18,166.08,6.0191]
[1747739199175,6.53182683,166.15,166.08,6.0191]
[1747739199474,67.55182683,166.15,166.08,6.0191]
[1747739199777,6.0186,166.11,166.08,6.0191]
[1747739199980,6.0186,166.11,166.1,0.0409414]
[1747739208180,0.03953638,166.13,166.1,0.0409414]
[1747739208785,6.018,166.12,166.1,6.0593414]
[1747739208985,0.03953638,166.13,166.1,0.0409414]
[1747739209390,0.03953638,166.13,166.11,6.0183]
[1747739215594,0.03953638,166.13,166.12,6.0179]
[1747739216291,61.04,166.21,166.1,0.0409414]
[1747739216491,6.0157,166.19,166.09,66.8632]
[1747739216893,6.0157,166.19,166.15,6.0165]
[1747739217393,0.0387681,166.19,166.16,6.0163]
[1747739218592,6.0543681,166.19,166.16,6.0163]
[1747739218993,0.0387681,166.19,166.15,6.0607519]
[1747739219189,6.0543681,166.19,166.15,6.0607519]
[1747739219895,0.0387681,166.19,166.15,0.0439519]
[1747739220588,6.016,166.18,166.15,6.0607519]
[1747739221194,6.0161,166.17,166.15,0.0439519]
[1747739223298,6.0159,166.18,166.15,6.0607519]
[1747739223893,0.0387681,166.19,166.15,0.0439519]
[1747739224497,6.0159,166.18,166.15,6.0606519]
[1747739225194,6.0162,166.17,166.15,0.0439519]
[1747739226087,6.0159,166.18,166.15,0.0439519]
[1747739226787,6.0159,166.18,166.15,6.0607519]
[1747739227192,6.0162,166.17,166.15,0.0439519]
[1747739227393,0.0387681,166.19,166.15,0.0439519]
[1747739227795,6.0165,166.16,166.15,0.0439519]
[1747739228295,6.0163,166.17,166.15,0.0439519]
[1747739228495,0.0387681,166.19,166.15,0.0439519]
[1747739229197,6.0545681,166.19,166.15,6.0606519]
[1747739229798,6.0545681,166.19,166.16,6.0164]
[1747739230397,0.0387681,166.19,166.17,6.0161]
[1747739230897,6.0542681,166.19,166.17,6.0161]
[1747739231098,6.0542681,166.19,166.16,6.0163]
[1747739232697,0.0387681,166.19,166.17,6.016]
[1747739234400,6.0542681,166.19,166.17,6.016]
[1747739235303,0.0387681,166.19,166.15,0.0439519]
[1747739235896,6.0163,166.17,166.15,0.0439519]
[1747739236597,6.0163,166.17,166.15,6.0607519]
[1747739237801,6.0159,166.18,166.15,6.0607519]
[1747739238510,6.0163,166.17,166.15,0.0439519]
[1747739238803,0.0387681,166.19,166.15,0.0439519]
[1747739239198,6.0165,166.16,166.15,0.0439519]
[1747739239404,60.96,166.16,166.09,60.96]
[1747739239601,1.9664,166.15,166.07,1.16012875]
[1747739240392,0.03826633,166.13,166.09,0.04122763]
[1747739240597,60.98,166.12,166.09,0.04122763]
[1747739241104,6.0187,166.1,166.09,0.04122763]
[1747739241509,6.0194,166.08,166.07,1.16012875]
[1747739242707,6.0197,166.07,166.06,0.04046638]
[1747739243003,60.98,166.08,165.99,2.0921]
[1747739243303,6.0211,166.04,165.98,60.98]
[1747739243509,69.51512683,166.08,165.98,60.98]
[1747739243701,69.51512683,166.08,165.97,1.16012875]
[1747739244112,0.03813565,166.04,166.01,0.03885514]
[1747739244402,61.01813565,166.04,166.01,0.03885514]
[1747739244804,6.0214,166.03,166.01,0.03885514]
[1747739245504,6.0216,166.02,166.01,0.03885514]
[1747739245703,61.01813565,166.04,166.01,0.03885514]
[1747739246610,6.0215,166.03,166.01,0.03885514]
[1747739248009,6.0216,166.02,166.01,0.03885514]
[1747739251614,6.0213,166.03,166.01,0.03885514]
[1747739251817,61.01813565,166.04,166.01,0.03885514]
[1747739252216,6.0212,166.03,166.01,6.06075514]
[1747739252416,6.0212,166.03,166.01,0.03885514]
[1747739254117,6.0216,166.02,166.01,0.03885514]
[1747739255522,12.55342683,166.02,166.01,0.03885514]
[1747739255711,12.55342683,166.02,165.92,61.02]
[1747739255712,6.53182683,166.02,165.92,61.02]
[1747739255915,6.53182683,165.99,165.89,115.39783739]
[1747739256122,6.0251,165.93,165.89,60.96]
[1747739256321,6.0251,165.93,165.9,6.0258]
[1747739256723,6.06757689,165.93,165.9,6.07016198]
[1747739256924,0.04247689,165.93,165.9,6.07016198]
[1747739257118,0.04247689,165.93,165.91,6.0254]
[1747739257323,0.04247689,165.93,165.9,0.04436198]
[1747739257524,0.04247689,165.93,165.92,6.0252]
[1747739259324,0.04247689,165.93,165.9,0.04436198]
[1747739259727,0.04247689,165.93,165.9,6.06996198]
[1747739260115,6.06737689,165.93,165.9,6.06996198]